fUSD/lending_fUSD_20240227
["ID","MTS","AMOUNT","RATE_DAILY","PERIOD"]
[315450953,1709040665364,-552.22,0.00023999,2]
[315450954,1709040665373,-552.22,0.00023999,2]
[315450955,1709040665382,-552.22,0.00023999,2]
[315450956,1709040665392,-552.22,0.00023999,2]
[315450957,1709040665401,-552.22,0.00023999,2]
[315450958,1709040665410,-552.33,0.00023999,2]
[315450959,1709040665419,-500.0,0.00023999,2]
[315450960,1709040665430,-500.0,0.00023999,2]
[315450961,1709040665439,-1259.03,0.00023999,2]
[315450962,1709040665448,-1259.03,0.00023999,2]
[315450963,1709040665457,-500.0,0.00023999,2]
[315450964,1709040665467,-1259.03,0.00023999,2]
[315450965,1709040665476,-1259.03,0.00023999,2]
[315450966,1709040665486,-500.0,0.00023999,2]
[315450967,1709040665495,-1259.03,0.00023999,2]
[315450968,1709040665505,-500.0,0.00023999,2]
[315450969,1709040665514,-500.0,0.00023999,2]
[315450970,1709040665524,-500.0,0.00023999,2]
[315450971,1709040665534,-1259.03,0.00023999,2]
[315450972,1709040665543,-500.0,0.00023999,2]
[315450973,1709040665553,-1259.03,0.00023999,2]
[315450974,1709040665562,-500.0,0.00023999,2]
[315450975,1709040665571,-1259.03,0.00023999,2]
[315450976,1709040665581,-409.12,0.00023999,2]
[315450977,1709040665591,-1259.03,0.00023999,2]
[315450978,1709040665600,-1259.03,0.00023999,2]
[315450979,1709040665609,-1259.03,0.00023999,2]
[315450980,1709040665619,-1259.03,0.00023999,2]
[315450981,1709040665628,-1259.09,0.00023999,2]
[315450982,1709040665637,-500.0,0.00023999,2]
[315450983,1709040665647,-500.0,0.00023999,2]
[315450984,1709040665657,-500.0,0.00023999,2]
[315450985,1709040665667,-500.0,0.00023999,2]
[315450986,1709040665676,-500.0,0.00023999,2]
[315450987,1709040665687,-500.0,0.00023999,2]
[315450988,1709040665697,-500.0,0.00023999,2]
[315450989,1709040665706,-500.0,0.00023999,2]
[315450990,1709040665715,-500.0,0.00023999,2]
[315450991,1709040665725,-557.03,0.00023999,2]
[315450992,1709040665735,-500.0,0.00023999,2]
[315450993,1709040665744,-557.03,0.00023999,2]
[315450994,1709040665754,-500.0,0.00023999,2]
[315450995,1709040665763,-557.03,0.00023999,2]
[315450996,1709040665773,-595.06781955,0.00023999,2]
[315450997,1709040665782,-557.03,0.00023999,2]
[315450998,1709040665792,-557.03,0.00023999,2]
[315450999,1709040665801,-557.03,0.00023999,2]
[315451000,1709040665810,-557.03,0.00023999,2]
[315451001,1709040665820,-557.03,0.00023999,2]
[315451002,1709040665829,-557.03,0.00023999,2]
[315451003,1709040665838,-557.03,0.00023999,2]
[315451004,1709040665849,-557.11,0.00023999,2]
[315451005,1709040665860,-626.15,0.00023999,2]
[315451006,1709040665869,-626.15,0.00023999,2]
[315451007,1709040665880,-626.15,0.00023999,2]
[315451008,1709040665889,-626.15,0.00023999,2]
[315451009,1709040665898,-626.15,0.00023999,2]
[315451010,1709040665908,-626.15,0.00023999,2]
[315451011,1709040665917,-626.15,0.00023999,2]
[315451012,1709040665926,-626.15,0.00023999,2]
[315451013,1709040665937,-626.15,0.00023999,2]
[315451014,1709040665946,-626.15,0.00023999,2]
[315451015,1709040665956,-626.15,0.00023999,2]
[315451016,1709040665964,-535.25,0.00023999,2]
[315451017,1709040665974,-535.25,0.00023999,2]
[315451018,1709040665983,-626.15,0.00023999,2]
[315451019,1709040665993,-535.25,0.00023999,2]
[315451020,1709040666002,-626.25,0.00023999,2]
[315451021,1709040666012,-535.25,0.00023999,2]
[315451022,1709040666022,-535.25,0.00023999,2]
[315451023,1709040666031,-535.25,0.00023999,2]
[315451024,1709040666041,-535.25,0.00023999,2]
[315451025,1709040666052,-535.25,0.00023999,2]
[315451026,1709040666062,-535.25,0.00023999,2]
[315451027,1709040666071,-535.25,0.00023999,2]
[315451028,1709040666081,-535.38494006,0.00023999,2]
[315451029,1709040666091,-982.52,0.00023999,2]
[315451030,1709040666101,-982.52,0.00023999,2]
[315451031,1709040666111,-982.52,0.00023999,2]
[315451032,1709040666121,-982.52,0.00023999,2]
[315451033,1709040666130,-982.52,0.00023999,2]
[315451034,1709040666143,-982.52,0.00023999,2]
[315451035,1709040666153,-982.52,0.00023999,2]
[315451036,1709040666162,-982.52,0.00023999,2]
[315451037,1709040666172,-500.0,0.00023999,2]
[315451038,1709040666184,-982.52,0.00023999,2]
[315451039,1709040666194,-500.0,0.00023999,2]
[315451040,1709040666204,-982.52,0.00023999,2]
[315451041,1709040666215,-982.52,0.00023999,2]
[315451042,1709040666226,-354.49,0.00023999,2]
[315451043,1709040666235,-982.52,0.00023999,2]
[315451044,1709040666245,-500.0,0.00023999,2]
[315451045,1709040666255,-982.64,0.00023999,2]
[315451046,1709040666265,-500.0,0.00023999,2]
[315451047,1709040666275,-500.0,0.00023999,2]
[315451048,1709040666284,-500.0,0.00023999,2]
[315451049,1709040666294,-500.0,0.00023999,2]
[315451050,1709040666304,-500.0,0.00023999,2]
[315451051,1709040666314,-500.0,0.00023999,2]
[315451052,1709040666324,-466.09,0.00023999,2]
[315451053,1709040666334,-501.42,0.00023999,2]
[315451054,1709040666343,-1182.69,0.00023999,2]
[315451055,1709040666353,-1182.69,0.00023999,2]
[315451056,1709040666362,-1182.69,0.00023999,2]
[315451057,1709040666372,-1182.69,0.00023999,2]
[315451058,1709040666381,-1182.69,0.00023999,2]
[315451059,1709040666391,-1182.69,0.00023999,2]
[315451060,1709040666401,-1182.69,0.00023999,2]
[315451061,1709040666411,-1182.69,0.00023999,2]
[315451062,1709040666421,-1182.69,0.00023999,2]
[315451063,1709040666432,-1182.69,0.00023999,2]
[315451064,1709040666442,-1182.8090417,0.00023999,2]
[315451065,1709040666452,-500.0,0.00023999,2]
[315451066,1709040666463,-500.0,0.00023999,2]
[315451067,1709040666473,-500.0,0.00023999,2]
[315451068,1709040666483,-500.0,0.00023999,2]
[315451069,1709040666493,-500.0,0.00023999,2]
[315451070,1709040666502,-505.1,0.00023999,2]
[315451071,1709040666512,-429.75795846,0.00023999,2]
[315451072,1709040666521,-500.0,0.00023999,2]
[315451073,1709040666531,-559.88,0.00023999,2]
[315451074,1709040666541,-500.0,0.00023999,2]
[315451075,1709040666551,-500.0,0.00023999,2]
[315451076,1709040666561,-500.0,0.00023999,2]
[315451077,1709040666570,-500.0,0.00023999,2]
[315451078,1709040666580,-500.0,0.00023999,2]
[315451079,1709040666589,-500.0,0.00023999,2]
[315451080,1709040666599,-551.8,0.00023999,2]
[315451081,1709040666609,-556.97,0.00023999,2]
[315451082,1709040666618,-556.97,0.00023999,2]
[315451083,1709040666628,-556.97,0.00023999,2]
[315451084,1709040666637,-556.97,0.00023999,2]
[315451085,1709040666647,-556.97,0.00023999,2]
[315451086,1709040666657,-556.97,0.00023999,2]
[315451087,1709040666666,-556.97,0.00023999,2]
[315451088,1709040666676,-556.97,0.00023999,2]
[315451089,1709040666687,-176.53,0.00023999,2]
[315451090,1709040666697,-556.97,0.00023999,2]
[315451091,1709040666706,-556.97,0.00023999,2]
[315451092,1709040666716,-556.97,0.00023999,2]
[315451093,1709040666726,-557.17,0.00023999,2]
[315451094,1709040666735,-963.78,0.00023999,2]
[315451095,1709040666744,-963.78,0.00023999,2]
[315451096,1709040666753,-963.78,0.00023999,2]
[315451097,1709040666763,-963.78,0.00023999,2]
[315451098,1709040666773,-963.78,0.00023999,2]
[315451099,1709040666783,-963.78,0.00023999,2]
[315451100,1709040666792,-963.78,0.00023999,2]
[315451101,1709040666803,-963.78,0.00023999,2]
[315451102,1709040666813,-963.78,0.00023999,2]
[315451103,1709040666823,-963.78,0.00023999,2]
[315451104,1709040666833,-963.78,0.00023999,2]
[315451105,1709040666843,-963.78,0.00023999,2]
[315451106,1709040666853,-963.98,0.00023999,2]
[315451107,1709040666863,-500.0,0.00023999,2]
[315451108,1709040666872,-186.5,0.00023999,2]
[315451109,1709040666882,-500.0,0.00023999,2]
[315451110,1709040666892,-500.0,0.00023999,2]
[315451111,1709040666902,-500.0,0.00023999,2]
[315451112,1709040666912,-500.0,0.00023999,2]
[315451113,1709040666921,-500.0,0.00023999,2]
[315451114,1709040666932,-500.0,0.00023999,2]
[315451115,1709040666941,-429.02404435,0.00023999,2]
[315451116,1709040666951,-1474.21,0.00023999,2]
[315451117,1709040666960,-500.0,0.00023999,2]
[315451118,1709040666969,-1474.21,0.00023999,2]
[315451119,1709040666978,-1474.21,0.00023999,2]
[315451120,1709040666987,-500.0,0.00023999,2]
[315451121,1709040666996,-1474.21,0.00023999,2]
[315451122,1709040667005,-500.0,0.00023999,2]
[315451123,1709040667014,-1474.21,0.00023999,2]
[315451124,1709040667023,-500.0,0.00023999,2]
[315451125,1709040667033,-1474.21,0.00023999,2]
[315451126,1709040667043,-500.0,0.00023999,2]
[315451127,1709040667053,-638.9,0.00023999,2]
[315451128,1709040667063,-1474.21,0.00023999,2]
[315451129,1709040667073,-347.6,0.00023999,2]
[315451130,1709040667083,-1474.21,0.00023999,2]
[315451131,1709040667093,-638.9,0.00023999,2]
[315451132,1709040667103,-1474.21,0.00023999,2]
[315451133,1709040667114,-638.9,0.00023999,2]
[315451134,1709040667125,-1474.21,0.00023999,2]
[315451135,1709040667137,-638.9,0.00023999,2]
[315451136,1709040667153,-1474.21,0.00023999,2]
[315451137,1709040667164,-1474.21,0.00023999,2]
[315451138,1709040667175,-638.9,0.00023999,2]
[315451139,1709040667190,-1474.24,0.00023999,2]
[315451140,1709040667201,-638.9,0.00023999,2]
[315451141,1709040667212,-638.9,0.00023999,2]
[315451142,1709040667222,-638.9,0.00023999,2]
[315451143,1709040667232,-638.9,0.00023999,2]
[315451144,1709040667242,-638.9,0.00023999,2]
[315451145,1709040667252,-639.07326048,0.00023999,2]
[315451146,1709040667263,-500.0,0.00023999,2]
[315451147,1709040667273,-500.0,0.00023999,2]
[315451148,1709040667284,-500.0,0.00023999,2]
[315451149,1709040667295,-500.0,0.00023999,2]
[315451150,1709040667305,-500.0,0.00023999,2]
[315451151,1709040667316,-500.0,0.00023999,2]
[315451152,1709040667327,-500.0,0.00023999,2]
[315451153,1709040667338,-525.67529059,0.00023999,2]
[315451154,1709040667348,-500.0,0.00023999,2]
[315451155,1709040667359,-326.76,0.00023999,2]
[315451156,1709040667370,-311.3862098,0.00023999,2]
[315451157,1709040667382,-1872.26,0.00023999,2]
[315451158,1709040667392,-1872.26,0.00023999,2]
[315451159,1709040667402,-1872.26,0.00023999,2]
[315451160,1709040667413,-725.34,0.00023999,2]
[315451161,1709040667423,-1872.26,0.00023999,2]
[315451162,1709040667438,-725.34,0.00023999,2]
[315451163,1709040667449,-1872.26,0.00023999,2]
[315451164,1709040667459,-725.34,0.00023999,2]
[315451165,1709040667471,-1872.26,0.00023999,2]
[315451166,1709040667482,-725.34,0.00023999,2]
[315451167,1709040667492,-1872.26,0.00023999,2]
[315451168,1709040667504,-725.34,0.00023999,2]
[315451169,1709040667514,-725.34,0.00023999,2]
[315451170,1709040667525,-1872.26,0.00023999,2]
[315451171,1709040667535,-725.34,0.00023999,2]
[315451172,1709040667545,-1872.26,0.00023999,2]
[315451173,1709040667556,-725.34,0.00023999,2]
[315451174,1709040667566,-1872.26,0.00023999,2]
[315451175,1709040667577,-725.34,0.00023999,2]
[315451176,1709040667589,-1872.26,0.00023999,2]
[315451177,1709040667601,-725.34,0.00023999,2]
[315451178,1709040667753,-1872.26,0.00023999,2]
[315451179,1709040667764,-725.34,0.00023999,2]
[315451180,1709040667775,-500.0,0.00023999,2]
[315451181,1709040667785,-1872.41164833,0.00023999,2]
[315451182,1709040667796,-725.49175287,0.00023999,2]
[315451183,1709040667807,-500.0,0.00023999,2]
[315451184,1709040667817,-1792.39,0.00023999,2]
[315451185,1709040667828,-500.0,0.00023999,2]
[315451186,1709040667839,-1792.39,0.00023999,2]
[315451187,1709040667851,-500.0,0.00023999,2]
[315451188,1709040667863,-500.0,0.00023999,2]
[315451189,1709040667874,-1792.39,0.00023999,2]
[315451190,1709040667883,-500.0,0.00023999,2]
[315451191,1709040667894,-1792.39,0.00023999,2]
[315451192,1709040667904,-500.0,0.00023999,2]
[315451193,1709040667914,-1792.39,0.00023999,2]
[315451194,1709040667924,-500.0,0.00023999,2]
[315451195,1709040667935,-1792.39,0.00023999,2]
[315451196,1709040667946,-500.0,0.00023999,2]
[315451197,1709040667957,-1792.39,0.00023999,2]
[315451198,1709040667967,-500.0,0.00023999,2]
[315451199,1709040667978,-1792.39,0.00023999,2]
[315451200,1709040667987,-374.76,0.00023999,2]
[315451201,1709040667997,-1792.39,0.00023999,2]
[315451202,1709040668006,-1792.39,0.00023999,2]
[315451203,1709040668015,-500.0,0.00023999,2]
[315451204,1709040668025,-1792.39,0.00023999,2]
[315451205,1709040668034,-500.0,0.00023999,2]
[315451206,1709040668043,-1792.4026,0.00023999,2]
[315451207,1709040668057,-500.0,0.00023999,2]
[315451208,1709040668066,-391.71,0.00023999,2]
[315451209,1709040668076,-500.0,0.00023999,2]
[315451210,1709040668086,-500.0,0.00023999,2]
[315451211,1709040668096,-500.0,0.00023999,2]
[315451212,1709040668107,-402.73,0.00023999,2]
[315451213,1709040668122,-5264.36,0.00023999,2]
[315451214,1709040668132,-5264.36,0.00023999,2]
[315451215,1709040668142,-5264.36,0.00023999,2]
[315451216,1709040668152,-5264.36,0.00023999,2]
[315451217,1709040668164,-5264.36,0.00023999,2]
[315451218,1709040668174,-5264.36,0.00023999,2]
[315451219,1709040668191,-5264.36,0.00023999,2]
[315451220,1709040668202,-5264.36,0.00023999,2]
[315451221,1709040668213,-5264.36,0.00023999,2]
[315451222,1709040668234,-5264.36,0.00023999,2]
[315451223,1709040668246,-5264.36,0.00023999,2]
[315451224,1709040668257,-5264.36,0.00023999,2]
[315451225,1709040668268,-5264.58000001,0.00023999,2]
[315451226,1709040668279,-500.0,0.00023999,2]
[315451227,1709040668289,-500.0,0.00023999,2]
[315451228,1709040668300,-251.76,0.00023999,2]
[315451229,1709040668310,-500.0,0.00023999,2]
[315451230,1709040668320,-479.7,0.00023999,2]
[315451231,1709040668331,-500.0,0.00023999,2]
[315451232,1709040668341,-500.0,0.00023999,2]
[315451233,1709040668351,-500.0,0.00023999,2]
[315451234,1709040668361,-500.0,0.00023999,2]
[315451235,1709040668371,-500.0,0.00023999,2]
[315451236,1709040668382,-500.0,0.00023999,2]
[315451237,1709040668392,-500.0,0.00023999,2]
[315451238,1709040668401,-500.0,0.00023999,2]
[315451239,1709040668411,-500.0,0.00023999,2]
[315451240,1709040668421,-363.8,0.00023999,2]
[315451241,1709040668431,-500.0,0.00023999,2]
[315451242,1709040668445,-529.37,0.00023999,2]
[315451243,1709040668455,-1371.68,0.00023999,2]
[315451244,1709040668465,-1371.68,0.00023999,2]
[315451245,1709040668477,-1371.68,0.00023999,2]
[315451246,1709040668487,-1371.68,0.00023999,2]
[315451247,1709040668496,-1371.68,0.00023999,2]
[315451248,1709040668506,-1371.68,0.00023999,2]
[315451249,1709040668516,-1371.68,0.00023999,2]
[315451250,1709040668526,-1371.68,0.00023999,2]
[315451251,1709040668535,-1371.68,0.00023999,2]
[315451252,1709040668545,-1371.68,0.00023999,2]
[315451253,1709040668556,-1371.75588222,0.00023999,2]
[315451254,1709040668566,-500.0,0.00023999,2]
[315451255,1709040668576,-500.0,0.00023999,2]
[315451256,1709040668585,-500.0,0.00023999,2]
[315451257,1709040668595,-500.0,0.00023999,2]
[315451258,1709040668605,-500.0,0.00023999,2]
[315451259,1709040668615,-500.0,0.00023999,2]
[315451260,1709040668626,-500.0,0.00023999,2]
[315451261,1709040668636,-500.0,0.00023999,2]
[315451262,1709040668646,-500.0,0.00023999,2]
[315451263,1709040668656,-500.0,0.00023999,2]
[315451264,1709040668670,-170.5,0.00023999,2]
[315451265,1709040668680,-500.0,0.00023999,2]
[315451266,1709040668692,-500.0,0.00023999,2]
[315451267,1709040668702,-500.0,0.00023999,2]
[315451268,1709040668712,-500.0,0.00023999,2]
[315451269,1709040668721,-500.0,0.00023999,2]
[315451270,1709040668731,-1402.99,0.00023999,2]
[315451271,1709040668740,-500.0,0.00023999,2]
[315451272,1709040668750,-1402.99,0.00023999,2]
[315451273,1709040668759,-500.0,0.00023999,2]
[315451274,1709040668769,-1402.99,0.00023999,2]
[315451275,1709040668779,-281.90137103,0.00023999,2]
[315451276,1709040668788,-1402.99,0.00023999,2]
[315451277,1709040668798,-1402.99,0.00023999,2]
[315451278,1709040668807,-1402.99,0.00023999,2]
[315451279,1709040668816,-1402.99,0.00023999,2]
[315451280,1709040668826,-1402.99,0.00023999,2]
[315451281,1709040668835,-500.0,0.00023999,2]
[315451282,1709040668845,-500.0,0.00023999,2]
[315451283,1709040668854,-500.0,0.00023999,2]
[315451284,1709040668864,-1402.99,0.00023999,2]
[315451285,1709040668874,-500.0,0.00023999,2]
[315451286,1709040668883,-1402.99,0.00023999,2]
[315451287,1709040668893,-500.0,0.00023999,2]
[315451288,1709040668902,-1402.99,0.00023999,2]
[315451289,1709040668912,-269.9,0.00023999,2]
[315451290,1709040668922,-705.0,0.00023999,2]
[315451291,1709040668935,-705.0,0.00023999,2]
[315451292,1709040668946,-1402.99,0.00023999,2]
[315451293,1709040668956,-705.0,0.00023999,2]
[315451294,1709040668965,-1403.09,0.00023999,2]
[315451295,1709040668975,-438.95530749,0.00023999,2]
[315451296,1709040669333,-185.36359941,0.00022718,2]
[315451297,1709040669344,-185.36359941,0.00022797,2]
[315451298,1709040669353,-286.95294929,0.00022816,3]
[315451299,1709040669385,-541.06705071,0.00022816,3]
[315451300,1709040669394,-383.86447153,0.00022997,2]
[315451301,1709040669404,-150.0,0.00023757,2]
[315451302,1709040669414,-732.01912384,0.000239,2]
[315451303,1709040669423,-266.04469251,0.00023999,2]
[315451304,1709040669432,-705.0,0.00023999,2]
[315451305,1709040669443,-705.0,0.00023999,2]
[315451306,1709040669452,-705.0,0.00023999,2]
[315451307,1709040669462,-705.0,0.00023999,2]
[315451308,1709040669471,-705.0,0.00023999,2]
[315451309,1709040669480,-705.0,0.00023999,2]
[315451310,1709040669490,-705.08,0.00023999,2]
[315451311,1709040669499,-600.3,0.00023999,2]
[315451312,1709040669509,-600.3,0.00023999,2]
[315451313,1709040669519,-600.3,0.00023999,2]
[315451314,1709040669529,-600.3,0.00023999,2]
[315451315,1709040669539,-600.3,0.00023999,2]
[315451316,1709040669549,-600.3,0.00023999,2]
[315451317,1709040669558,-600.3,0.00023999,2]
[315451318,1709040669568,-600.3,0.00023999,2]
[315451319,1709040669577,-600.3,0.00023999,2]
[315451320,1709040669587,-600.3,0.00023999,2]
[315451321,1709040669597,-600.40560475,0.00023999,2]
[315451322,1709040669606,-150.0,0.00023999,2]
[315451323,1709040669616,-360.56212611,0.00024,2]
[315451324,1709040669626,-232695.37545668,0.00024,30]
[315451325,1709040669638,-1298.749997,0.00024,30]
[315451326,1709040669650,-24313.74817788,0.00024,30]
[315451327,1709040669662,-2784.59281116,0.00024,30]
[315451328,1709040669673,-392.98284367,0.00024,30]
[315451329,1709040669687,-5251.66496707,0.00024,30]
[315451330,1709040669698,-1083.96802157,0.00024,30]
[315451331,1709040669709,-300.0,0.00024,30]
[315451332,1709040669721,-1257.25445626,0.00024,30]
[315451333,1709040669732,-17802.29151498,0.00024,30]
[315451334,1709040669746,-384.34893729,0.00024,30]
[315451335,1709040669757,-1300.4999905,0.00024,30]
[315451336,1709040669768,-26971.49159543,0.00024,30]
[315451337,1709040669780,-3018.85,0.00024,30]
[315451338,1709040669792,-7128.60971203,0.00024,30]
[315451339,1709040669802,-500.0,0.00024,2]
[315451340,1709040669811,-1029.80565897,0.00024,30]
[315451341,1709040669824,-11387.4,0.00024,30]
[315451342,1709040669838,-3877.13847463,0.00024,30]
[315451343,1709040669851,-1047.14,0.00024,30]
[315451344,1709040669863,-291.97,0.00024,30]
[315451345,1709040669876,-716.76476399,0.00024,30]
[315451346,1709040669889,-146637.63935213,0.00024,30]
[315451347,1709040669903,-404.04653892,0.00024,30]
[315451348,1709040669915,-460.65118638,0.00024,30]
[315451349,1709040669928,-5994.7569954,0.00024,30]
[315451350,1709040669948,-531.3,0.00024,30]
[315451351,1709040669964,-649.63058549,0.00024,30]
[315451352,1709040670569,500.0,0.0002126,2]
[315451353,1709040670849,-100000.0,0.00024,30]
[315451354,1709040671094,-100000.0,0.00024,30]
[315451355,1709040674187,233922.92907773,0.00021982,2]
[315451356,1709040685005,-50000.0,0.00024,30]
[315451357,1709040718819,192.0,0.000262,120]
[315451358,1709040719446,1750.0,0.00022,3]
[315451359,1709040790454,151.0,0.0002882,120]
[315451360,1709040837847,180.25,0.00021932,2]
[315451361,1709040857277,539.89,0.00020042,2]
[315451362,1709040888266,8175.21,0.00021918,2]
[315451363,1709040903827,820.09,0.00021935,2]
[315451364,1709040936472,250.0,0.0002189,2]
[315451366,1709040960706,717.0,0.00021859,2]
[315451367,1709040962394,11613.72550981,0.00022,2]
[315451368,1709040973530,1050.0,0.00021846,2]
[315451369,1709040974875,-20000.0,0.00024,30]
[315451370,1709040992444,250.0,0.00021797,2]
[315451371,1709040996345,-50000.0,0.00024,30]
[315451372,1709040997373,840.0,0.00021797,2]
[315451373,1709041022044,1629.71,0.00021938,2]
[315451374,1709041029270,32871.63818004,0.00022,2]
[315451376,1709041045545,750.0,0.00021773,2]
[315451377,1709041072208,200.0,0.0002173,2]
[315451378,1709041084714,1313.24,0.00021715,2]
[315451379,1709041096609,166.15,0.00021878,2]
[315451380,1709041097647,156.5,0.00021918,2]
[315451381,1709041115521,6821.06,0.00021904,2]
[315451382,1709041171169,190909.0,0.0003,120]
[315451383,1709041176215,23900.0,0.00021625,2]
[315451385,1709041181984,4665.18,0.000216,2]
[315451386,1709041217617,200.0,0.00021619,2]
[315451387,1709041288649,150.0,0.00021539,2]
[315451388,1709041289945,151.0,0.00028902,120]
[315451389,1709041302677,150.0,0.00021667,2]
[315451390,1709041307253,500.0,0.0002173,2]
[315451391,1709041354317,188.24,0.00021667,2]
[315451392,1709041356704,174.87012141,0.00021539,2]
[315451393,1709041362696,512.89,0.00019808,2]
[315451394,1709041372089,2000.0,0.00021655,2]
[315451395,1709041444496,250.0,0.00021622,2]
[315451396,1709041445007,358.5,0.00021622,2]
[315451397,1709041469664,250.0,0.0002173,2]
[315451398,1709041470701,202.35247832,0.00021982,2]
[315451399,1709041470994,202.35247832,0.00021995,2]
[315451400,1709041471307,202.35247832,0.00021981,2]
[315451401,1709041471616,202.35247832,0.00021996,2]
[315451402,1709041479941,328.0,0.00021624,2]
[315451403,1709041481579,1420.21201988,0.00021981,2]
[315451404,1709041481868,1420.21201988,0.00021986,2]
[315451405,1709041482231,1420.21201988,0.00021999,2]
[315451406,1709041482600,1420.21201988,0.00021997,2]
[315451407,1709041485790,422.83228666,0.00022,2]
[315451408,1709041489422,875.0,0.00021638,2]
[315451409,1709041496932,640.85165021,0.00022739,30]
[315451410,1709041507106,357.06903321,0.00021989,2]
[315451411,1709041507420,357.06903321,0.00021997,2]
[315451412,1709041507716,357.06903321,0.00021987,2]
[315451413,1709041508032,357.06903321,0.00021985,2]
[315451414,1709041511153,16437.3131948,0.00021981,2]
[315451415,1709041511461,16437.3131948,0.00022,2]
[315451416,1709041511809,16437.3131948,0.00021998,2]
[315451417,1709041512109,16437.3131948,0.0002199,2]
[315451418,1709041530778,-20000.0,0.00024,30]
[315451419,1709041541332,511.2763272,0.00021979,2]
[315451420,1709041541915,511.2763272,0.00021986,2]
[315451421,1709041541993,511.2763272,0.00021986,2]
[315451422,1709041542307,511.2763272,0.00021988,2]
[315451423,1709041546051,-20000.0,0.00024,30]
[315451425,1709041566704,185.67589727,0.00021991,2]
[315451426,1709041566996,185.67589727,0.00021989,2]
[315451427,1709041567613,185.67589727,0.00021979,2]
[315451428,1709041567979,185.67589727,0.00021995,2]
[315451429,1709041568926,5917.43275017,0.00021994,2]
[315451430,1709041569270,5917.43275017,0.0002199,2]
[315451431,1709041569634,5917.43275017,0.00021989,2]
[315451432,1709041569973,5917.43275017,0.00021981,2]
[315451434,1709041587332,-20000.0,0.00024,30]
[315451435,1709041599494,265.86369014,0.00021987,2]
[315451436,1709041599832,265.86369014,0.0002199,2]
[315451437,1709041600212,265.86369014,0.00021999,2]
[315451438,1709041600580,265.86369014,0.00021999,2]
[315451440,1709041622336,166.15,0.00021748,2]
[315451441,1709041622578,166.15,0.00021937,2]
[315451442,1709041630447,2130.2757901,0.00021994,2]
[315451443,1709041630757,2130.2757901,0.00021986,2]
[315451444,1709041631041,2130.2757901,0.00021993,2]
[315451445,1709041631306,2130.2757901,0.00021995,2]
[315451448,1709041667657,17005.37,0.00021588,2]
[315451449,1709041691404,766.89928449,0.00021985,2]
[315451450,1709041691707,766.89928449,0.00021997,2]
[315451451,1709041692031,766.89928449,0.00021998,2]
[315451452,1709041692336,766.89928449,0.00021995,2]
[315451453,1709041716527,2844.5821,0.00021971,2]
[315451454,1709041731107,151.0,0.00029047,120]
[315451455,1709041747731,161.31250724,0.00021972,2]
[315451456,1709041750597,500.0,0.00021618,2]
[315451457,1709041750860,276.08374246,0.00021981,2]
[315451458,1709041751204,276.08374246,0.00021994,2]
[315451459,1709041751532,276.08374246,0.0002198,2]
[315451460,1709041751860,276.08374246,0.00021993,2]